Cogmind - Beta 12 @@@ ROGUE MODE // 2023.08.26 @ 13:44:21 Player: morimori Result: Destroyed by G-67 Veteran with Plasma Rifle Performance ------------- Evolutions (7) 3500 Regions Visited (14) 2800 Robots Destroyed (281) 1405 Value Destroyed (8604) 8604 Prototype IDs (6) 120 Alien Tech Used (0) 0 Bonus (676) 676 TOTAL SCORE: 17105 Bonus ------- High Alert Combat Kills 426 Follower Combat Kills 615 Friendly Fire -365 Cogmind --------- Core Integrity 0/1300 Matter 271/300 Energy 99/100 System Corruption 10% Temperature Cool (12) Movement Core (50) Location -3/Research Parts ------- > --- POWER (2) -------- (None) > --- PROPULSION (5) --- (None) > --- UTILITY (10) ----- Improved Coolant Injector Improved Coolant Injector Advanced Signal Interpreter Advanced Target Analyzer Armor Integrity Analyzer Advanced Hacking Suite > --- WEAPON (4) ------- (None) > --- INVENTORY (5) ---- Micro Antimatter Reactor Advanced Cryofiber Web Improved Transmission Jammer Heavy Reflective Plating Peak State ------------ > --- POWER ------------ Micro Fission Core Light Antimatter Reactor > --- PROPULSION ------- Flexi-carbon Leg Flexi-carbon Leg Myomer Leg Myomer Leg Myomer Leg > --- UTILITY ---------- Advanced Cryofiber Web Large Storage Unit Advanced Sensor Array Advanced Signal Interpreter Advanced Target Analyzer Armor Integrity Analyzer Advanced Shield Generator Hacking Suite Hacking Suite Advanced Hacking Suite > --- WEAPON ----------- Tesla Rifle Phase Gun Heavy Ion Cannon Hardcell Cannon > --- INVENTORY -------- Micro Antimatter Reactor Flexi-carbon Leg Advanced Cryofiber Web Advanced Cryofiber Web Advanced Cryofiber Web Advanced Particle Charger Improved Kinecellerator Improved Transmission Jammer Heavy Reflective Plating Improved Shock Absorption System Gamma Rifle Beamcaster [Rating: 123] Favorites ----------- Power Deuterium Engine Engine Deuterium Engine Power Core Micro Nuclear Core Reactor Light Antimatter Reactor Propulsion Wheel Leg Flexi-carbon Leg Wheel Wheel Hover Unit Antigrav System Flight Unit Xenon Bombardment Thruster Utility Improved Heat Sink Device Improved Heat Sink Storage Large Storage Unit Processor Armor Integrity Analyzer Hackware Hacking Suite Protection Weapon Shielding Weapon Ion Cannon Energy Gun Beamcaster Energy Cannon Ion Cannon Ballistic Gun KE Penetrator Ballistic Cannon Heavy Flak Cannon Launcher Scatter Rocket Array Build | -11 -10 -9 -9 -8 -8 -7 -7 -7 -6 -6 -6 -5 -4 -3 ------- Run | Jun Mat Mat Min Mat Sto Fac Low Low Fac Was Fac Fac Fac Res Slots Evolved 14 | . . 2 . 2 . 2 . . 2 . . 2 2 2 Power 1 | . . . . . . . . . 1 . . . . . Propulsion 3 | . . . . . . 2 . . . . . . 1 . Utility 8 | . . 2 . 2 . . . . . . . 2 . 2 Weapon 2 | . . . . . . . . . 1 . . . 1 . Parts Attached 253 | 6 19 28 . 31 14 26 3 . 33 2 32 15 25 19 Power 30 | 1 3 3 . 3 2 2 . . 6 . 3 3 4 . Engine 15 | 1 3 3 . 2 1 1 . . 3 . . 1 . . Core 14 | . . . . 1 1 1 . . 3 . 3 2 3 . Reactor 1 | . . . . . . . . . . . . . 1 . Propulsion 65 | 2 5 3 . 7 4 6 2 . 7 . 11 3 9 6 Treads . | . . . . . . . . . . . . . . . Leg 47 | . . . . 2 4 6 2 . 7 . 11 3 8 4 Wheel 15 | 2 5 3 . 5 . . . . . . . . . . Hover 1 | . . . . . . . . . . . . . 1 . Flight 2 | . . . . . . . . . . . . . . 2 Utility 75 | 1 5 10 . 10 . 16 1 . 7 . 4 6 7 8 Device 43 | . 2 5 . 6 . 10 1 . 4 . 4 5 1 5 Storage 6 | 1 1 1 . 1 . 1 . . 1 . . . . . Processor 10 | . 1 . . 2 . . . . 2 . . 1 2 2 Hackware 6 | . . . . . . 2 . . . . . . 4 . Protection 10 | . 1 4 . 1 . 3 . . . . . . . 1 Artifact . | . . . . . . . . . . . . . . . Weapon 83 | 2 6 12 . 11 8 2 . . 13 2 14 3 5 5 Energy Gun 33 | 2 6 2 . 2 2 1 . . 3 1 5 3 3 3 Energy Cannon 22 | . . 6 . 5 3 1 . . 2 . 4 . . 1 Ballistic Gun 2 | . . . . . . . . . . . . . 2 . Ballistic Cannon 5 | . . . . . . . . . 4 . . . . 1 Launcher 21 | . . 4 . 4 3 . . . 4 1 5 . . . Special Weapon . | . . . . . . . . . . . . . . . Impact Weapon . | . . . . . . . . . . . . . . . Slashing Weapon . | . . . . . . . . . . . . . . . Piercing Weapon . | . . . . . . . . . . . . . . . Special Melee Weapon . | . . . . . . . . . . . . . . . Unidentified Prototypes 2 | . . 1 . . 1 . . . . . . . . . Parts Lost 98 | . 6 11 1 13 . 5 2 1 10 . 15 1 14 19 Power 18 | . 2 2 1 . . 2 . . 3 . 3 . 3 2 Propulsion 35 | . 3 3 . 7 . 1 2 . 3 . 4 . 4 8 Utility 24 | . . 5 . 3 . 2 . . 2 . 4 1 2 5 Weapon 21 | . 1 1 . 3 . . . 1 2 . 4 . 5 4 Highest Loss Streak 19 | . 3 3 1 6 . 3 1 1 4 . 10 1 9 19 To Critical Strikes 1 | . . . . . . . . . . . . . 1 . Average Slot Usage (%) 96 | . 99 99 100 94 99 94 99 98 99 99 95 82 95 81 Engine 5 | . 14 10 11 7 5 . 7 7 7 6 1 . 2 . Core 3 | . . . . . 3 6 . . 5 6 10 5 6 2 Leg 16 | . . . . 2 18 25 29 30 25 26 24 23 24 16 Wheel 7 | . 27 21 22 14 . . . . . . . . . . Device 15 | . 11 10 11 18 27 17 15 15 14 20 19 22 6 10 Storage 8 | . 14 11 11 9 9 7 7 7 6 6 6 5 5 3 Processor 12 | . . 11 11 17 18 15 15 15 16 13 12 6 15 13 Hackware 2 | . . . . . . 2 7 7 1 . . . 12 13 Protection 2 | . 2 10 11 5 . 2 . . . . . . . . Energy Gun 9 | . 28 3 . 3 5 7 7 5 8 1 5 16 18 7 Energy Cannon 6 | . . 13 22 12 10 7 7 7 5 6 7 . . 2 Launcher 1 | . . 4 . 2 1 . . . 3 5 4 . . . Naked Turns . | . . . . . . . . . . . . . . . Heaviest Build 111 | 13 91 109 109 111 45 53 44 44 58 62 68 52 64 73 Greatest Support 120 | 26 26 20 20 32 32 68 63 63 76 67 72 80 120 115 Greatest Overweight (x) 10 | . 8 5 5 10 2 2 1 . 1 . 1 . . 2 Average Overweight (x) 1 | . 3 4 4 4 1 . . . . . . . . . Largest Inventory Capacity 25 | 8 25 25 25 25 15 15 15 15 15 15 15 15 15 15 Average Capacity 17 | 7 24 25 25 23 15 15 15 15 15 15 15 15 15 12 Most Carried 25 | 5 25 25 25 25 15 15 15 15 15 15 15 12 15 14 Average Carried 16 | 2 19 23 24 22 14 14 14 14 14 14 14 7 14 10 Final Capacity 25 | 8 25 25 25 15 15 15 15 15 15 15 15 15 15 5 Final Carried 24 | 5 24 24 24 15 15 14 14 15 14 15 13 10 13 5 Class Distribution -------------------- 38% | Mutant 32% | Scavenger-Mutant 14% | Scavenger-Gunner 6% | Hacker-Gunner 4% | Gunner Dominant Class ---------------- Mutant | -10/Materials Mutant | -9/Materials Mutant | -9/Mines Mutant | -8/Materials Mutant | -8/Storage Scavenger-Mutant | -7/Factory Scavenger-Mutant | -7/Lower Caves Scavenger-Mutant | -7/Lower Caves Scavenger-Gunner | -6/Factory Scavenger-Gunner | -6/Waste Mutant | -6/Factory Gunner | -5/Factory Hacker-Gunner | -4/Factory Scavenger-Gunner | -3/Research Resources | -11 -10 -9 -9 -8 -8 -7 -7 -7 -6 -6 -6 -5 -4 -3 ----------- Run | Jun Mat Mat Min Mat Sto Fac Low Low Fac Was Fac Fac Fac Res Matter Collected 4243 | 260 205 441 . 417 251 250 30 . 656 693 393 99 408 140 Remotely . | . . . . . . . . . . . . . . . Salvage Created 9945 | 137 1078 1454 . 902 601 951 638 56 1038 1114 621 99 940 316 Parts 517 | 7 70 103 . 49 43 59 23 3 67 . 38 6 32 17 Haulers Intercepted 1 | . . 1 . . . . . . . . . . . . Recyclers Shooed 20 | . 2 3 . 1 2 1 . . 1 . 6 . 3 1 Parts Field Recycled . | . . . . . . . . . . . . . . . Retrieved Matter . | . . . . . . . . . . . . . . . Parts Self-Destructed 21 | . . . . . . . 19 2 . . . . . . Prevented . | . . . . . . . . . . . . . . . Kills | -11 -10 -9 -9 -8 -8 -7 -7 -7 -6 -6 -6 -5 -4 -3 ------- Run | Jun Mat Mat Min Mat Sto Fac Low Low Fac Was Fac Fac Fac Res Combat Hostiles Destroyed 181 | . 23 35 . 23 10 17 10 1 23 6 17 . 11 5 Guns 73 | . 23 8 . 6 3 9 3 . 6 . 2 . 9 4 Cannons 54 | . . 16 . 5 6 7 6 1 5 2 5 . . 1 AOE 49 | . . 11 . 10 1 1 . . 12 4 10 . . . Classes Destroyed 19 | 2 6 4 . . 1 1 . . 2 1 2 . . . Worker 26 | . 6 2 . . 2 4 . . 5 . 3 . 3 1 Builder 28 | . . 2 . 5 4 4 . . 4 . 6 1 1 1 Tunneler 8 | 4 . 1 . . . . . . 2 . . 1 . . Hauler 1 | . . 1 . . . . . . . . . . . . Recycler 7 | 1 1 . . 3 . 1 . . . . . . 1 . Mechanic 4 | . 1 . . 1 . . . . . . . 1 1 . Operator 4 | . 1 1 . 1 1 . . . . . . . . . Watcher 20 | . 3 5 . 1 1 2 . . 4 . . . 1 3 Swarmer 46 | . 6 11 . 7 . 4 2 . 5 . 7 . . 4 Grunt 75 | . 17 13 . 13 6 1 7 . 10 . 4 . 4 . Brawler 1 | . . . . . . . . . 1 . . . . . Duelist 2 | . . 1 . . . 1 . . . . . . . . Protector 1 | . . . . . . . . . . . 1 . . . Sentry 22 | . . 10 . 3 2 4 1 . 1 . . . 1 . Specialist 1 | . . . . . . . . . . . 1 . . . Hunter 15 | . . . . . 2 4 . 1 3 . 3 . 2 . Programmer 11 | . . . . . . 3 . . 2 . 1 . 4 1 Behemoth 1 | . . . . . . . . . 1 . . . . . Compactor 6 | . . . . . . . . . . 6 . . . . Surgeon 1 | . . . . . . . . . . . 1 . . . Thug 1 | . . . . . . . . . . . 1 . . . Best Kill Streak 14 | 4 10 6 . 14 5 7 7 1 10 3 10 3 4 7 Combat Bots Only 10 | . 10 5 . 8 3 5 7 1 6 3 5 . 4 4 Max Kills in Single Turn 8 | 1 1 4 . 3 4 3 2 1 8 1 5 1 2 4 Gunslinging . | . . . . . . . . . . . . . . . Exploded 4 | . . 3 . 3 1 1 . . 4 1 4 . . . Melee . | . . . . . . . . . . . . . . . Uniques/NPCs Destroyed . | . . . . . . . . . . . . . . . Combat | -11 -10 -9 -9 -8 -8 -7 -7 -7 -6 -6 -6 -5 -4 -3 -------- Run | Jun Mat Mat Min Mat Sto Fac Low Low Fac Was Fac Fac Fac Res Damage Taken 15595 | . 726 1316 210 1062 617 1630 531 42 1517 135 2564 201 2355 2689 Core 3868 | . 205 245 42 220 61 391 58 . 206 63 523 . 554 1300 Absorbed by Shields 85 | . . . . . . . . . . . . . 85 . Redirected to Shielding 141 | . . 40 . . . . . . . . . . . 101 Regen/Repaired (Parts) 564 | . . 95 . . 185 99 . . . 53 132 . . . Core Remaining (%) 48 | 100 18 . 28 . 48 . . 35 . . 6 100 51 . Volleys Fired 598 | 15 97 90 2 69 39 73 28 1 55 11 32 7 58 21 Largest 4 | 2 2 2 2 2 2 2 2 2 3 3 3 3 4 4 Hottest 306 | 90 115 120 120 125 129 145 145 145 209 178 261 225 306 293 Shots Fired 1315 | 30 194 180 4 136 78 144 56 2 143 33 76 21 165 53 Gun 778 | 30 194 52 . 43 37 71 28 1 73 . 23 21 165 40 Cannon 481 | . . 114 4 80 39 73 28 1 65 22 42 . . 13 Launcher 56 | . . 14 . 13 2 . . . 5 11 11 . . . Special . | . . . . . . . . . . . . . . . Kinetic 72 | . . . . . . . . . 28 11 . . 26 7 Thermal 1167 | 30 194 166 4 123 76 144 56 2 110 11 65 21 139 26 Explosive 56 | . . 14 . 13 2 . . . 5 11 11 . . . Electromagnetic 20 | . . . . . . . . . . . . . . 20 Robot Hit Streak 27 | 11 14 14 4 17 13 12 12 6 16 10 9 5 27 7 Robot Miss Streak 13 | 2 3 4 1 8 3 6 5 2 13 5 4 2 7 4 Penetration Max 1 | . . . . . . . . . . . . . 1 . Secondary Targets 7 | . 3 1 . . . . . . . . . . 1 2 Max Gunslinging Chain 1 | . 1 1 . . . . . . . . . . 1 1 Shots Hit Robots 811 | 22 123 96 1 74 51 93 47 2 95 27 41 13 94 32 Core Hits 576 | 6 55 64 . 87 32 52 32 2 103 29 50 5 45 14 Critical Kills 3 | . . . . 2 . . . . . . 1 . . . Critical Parts Destroyed 2 | . . . . . . . . . . . . . 2 . Critical Strikes 26 | . 5 . . 2 4 . . . . . 1 1 10 3 Burn 19 | . 5 . . . 4 . . . . . . 1 8 1 Meltdown 3 | . . . . 2 . . . . . . 1 . . . Destroy 2 | . . . . . . . . . . . . . 2 . Corrupt 2 | . . . . . . . . . . . . . . 2 Melee Attacks . | . . . . . . . . . . . . . . . Impact . | . . . . . . . . . . . . . . . Slashing . | . . . . . . . . . . . . . . . Piercing . | . . . . . . . . . . . . . . . Sneak Attacks . | . . . . . . . . . . . . . . . Combat Hostiles . | . . . . . . . . . . . . . . . Follow-up Attacks . | . . . . . . . . . . . . . . . Damage Inflicted 28138 | 269 1482 2752 46 2668 1420 2367 1089 37 3754 3496 4086 284 2946 1442 Guns 9786 | 269 1482 430 . 532 412 1164 521 11 1179 . 365 284 2402 735 Cannons 7457 | . . 1460 46 829 742 950 568 26 998 594 998 . . 246 Explosions 10766 | . . 848 . 1307 266 253 . . 1573 2902 2677 . 492 448 Melee . | . . . . . . . . . . . . . . . Ramming 129 | . . 14 . . . . . . 4 . 46 . 52 13 Kinetic 1560 | . . . . . . . . . 547 370 . . 491 152 Thermal 16313 | 269 1482 1890 46 1361 1154 2114 1089 37 1630 224 1363 284 2403 967 Explosive 9765 | . . 848 . 1307 266 253 . . 1512 2902 2677 . . . Electromagnetic 371 | . . . . . . . . . 61 . . . . 310 Impact . | . . . . . . . . . . . . . . . Slashing . | . . . . . . . . . . . . . . . Piercing . | . . . . . . . . . . . . . . . Highest Corruption 10 | . 2 1 1 . . 1 . . . . 6 2 7 10 Average Corruption 1 | . 1 1 1 . . 1 . . . . 1 1 2 7 Corruption Purged 1 | . . . . . . 1 . . . . . . . . Corruption Blocked 2 | . . . . . . 2 . . . . . . . . Effects 60 | . 17 15 3 . . 1 . . . . 7 . 13 4 Message Errors 16 | . 5 4 . . . 1 . . . . 2 . 3 1 Matter Fused 13 | . 3 4 1 . . . . . . . 4 . . 1 Heat Flow Errors 9 | . 5 1 . . . . . . . . 1 . 2 . Energy Discharges 6 | . 2 2 2 . . . . . . . . . . . Parts Rejected 1 | . . . . . . . . . . . . . . 1 Parts Fused 1 | . . . . . . . . . . . . . 1 . Data Loss (minor) 5 | . 1 1 . . . . . . . . . . 3 . Data Loss (major) 1 | . . 1 . . . . . . . . . . . . Misfires 2 | . . 1 . . . . . . . . . . 1 . Alerts 3 | . 1 . . . . . . . . . . . 2 . Weapon Failures 3 | . . 1 . . . . . . . . . . 1 1 Overload Shots . | . . . . . . . . . . . . . . . Overflow Damage 547 | . . 92 . 60 37 30 15 . 24 . 66 . 58 165 Projectiles 196 | . . 54 . 4 37 9 15 . . . 33 . . 44 Explosions 349 | . . 38 . 56 . 21 . . 24 . 31 . 58 121 Melee 2 | . . . . . . . . . . . 2 . . . Knockbacks 12 | . . . . . . . . . 10 . . . 1 1 Impact 1 | . . . . . . . . . . . . . 1 . Kinetic 10 | . . . . . . . . . 9 . . . . 1 Secondary 1 | . . . . . . . . . 1 . . . . . Self-Inflicted Damage 571 | . . 116 . 51 . 105 . . 69 136 57 . . 37 Shots 17 | . . 3 . 1 . 1 . . 3 6 2 . . 1 Rammed 4 | . . 1 . . . . . . . . . . . 3 Targets Rammed 20 | . . 1 . . . . . . 2 . 7 . 6 4 Kicked 16 | . . . . . . . . . 2 . 7 . 6 1 Crushed . | . . . . . . . . . . . . . . . Highest Temperature 392 | 150 315 315 33 203 189 390 159 21 313 . 392 193 236 356 Average Temperature 80 | 55 90 63 19 50 52 64 44 14 76 . 121 87 117 155 Received Heat Transfer 3515 | . 333 417 60 486 261 195 162 9 339 . 841 . 400 12 Effects 17 | . 4 . . . . . . . 3 . 6 . 2 2 Energy Bleed 1 | . . . . . . . . . . . 1 . . . Interference 16 | . 4 . . . . . . . 3 . 5 . 2 2 Siege Activations . | . . . . . . . . . . . . . . . Robots Corrupted . | . . . . . . . . . . . . . . . Combat Hostiles . | . . . . . . . . . . . . . . . Parts Fried 2 | . . . . . . . . . . . . . . 2 Impact Corruptions 1 | . . . . . . . . . . . 1 . . . Robots Melted 6 | . . . . 2 . . 1 . . . 1 . 2 . Combat Hostiles 5 | . . . . 2 . . 1 . . . . . 2 . Parts Melted 61 | 1 9 9 . 6 2 6 4 . 5 . 2 2 15 . Heat Transferred 29572 | 695 4274 3435 74 1977 2294 3733 1977 62 3086 296 2037 555 4037 1040 Parts Sabotaged 4 | . . . . . . . . . . . 4 . . . Parts Stolen . | . . . . . . . . . . . . . . . Parts Stripped . | . . . . . . . . . . . . . . . Power Chain Reactions 2 | . . . . . . . . . . . . . . 2 Missiles Intercepted . | . . . . . . . . . . . . . . . Alert | -11 -10 -9 -9 -8 -8 -7 -7 -7 -6 -6 -6 -5 -4 -3 ------- Run | Jun Mat Mat Min Mat Sto Fac Low Low Fac Was Fac Fac Fac Res Peak Influence 988 | 25 337 499 77 564 304 378 . . 483 295 988 465 267 249 Initial 450 | . 16 39 66 26 236 . . . 119 169 66 450 222 57 Average 233 | 10 149 297 66 417 170 102 . . 155 240 546 452 142 104 Maximum Alert Level 3 | . 1 2 . 2 1 1 . . 2 1 3 2 1 1 Low Security (%) 50 | 100 64 23 100 9 50 76 . . 74 30 11 . 68 95 Level 1 34 | . 35 61 . 18 49 23 . . 21 69 32 . 31 4 Level 2 11 | . . 15 . 71 . . . . 3 . 20 100 . . Level 3 4 | . . . . . . . . . . . 35 . . . Level 4 . | . . . . . . . . . . . . . . . Level 5 . | . . . . . . . . . . . . . . . High Security . | . . . . . . . . . . . . . . . Max Security . | . . . . . . . . . . . . . . . Squads Dispatched 47 | . 6 4 . 7 2 8 . . 7 . 6 1 5 1 Investigation 14 | . 5 2 . . . 1 . . 4 . 1 . 1 . Extermination 10 | . . . . . . 4 . . 1 . 2 1 2 . Reinforcement 17 | . 1 2 . 4 2 3 . . . . 2 . 2 1 Assault 1 | . . . . . . . . . . . 1 . . . Garrison 5 | . . . . 3 . . . . 2 . . . . . Intercept . | . . . . . . . . . . . . . . . Searches Triggered . | . . . . . . . . . . . . . . . Construction Impeded 7 | . . 1 . 3 . . . . . . 2 . 1 . Haulers Reinforced 1 | . . . . . . . . . . . . . 1 . Active Scanning Responses . | . . . . . . . . . . . . . . . Cargo Convoy Interrupts 2 | . . . . . . 1 . . . . 1 . . . Stealth | -11 -10 -9 -9 -8 -8 -7 -7 -7 -6 -6 -6 -5 -4 -3 --------- Run | Jun Mat Mat Min Mat Sto Fac Low Low Fac Was Fac Fac Fac Res Distress Signals 23 | . 4 4 . 3 . 7 . . 1 . 2 . 1 1 Communications Jammed . | . . . . . . . . . . . . . . . Distress Signals . | . . . . . . . . . . . . . . . Times Spotted 330 | . 39 45 3 35 14 28 11 2 34 6 47 2 26 38 Peak Tracking Total 13 | . 9 7 3 7 2 6 7 3 4 2 12 2 11 13 Tactical Retreats 17 | . 1 2 . 4 1 2 . . 1 . 2 . . 4 Traps | -11 -10 -9 -9 -8 -8 -7 -7 -7 -6 -6 -6 -5 -4 -3 ------- Run | Jun Mat Mat Min Mat Sto Fac Low Low Fac Was Fac Fac Fac Res Traps Triggered 23 | . 7 1 . 1 2 1 . . 3 . 5 . 3 . Indirectly . | . . . . . . . . . . . . . . . Trap Hack Attempts . | . . . . . . . . . . . . . . . Triggered . | . . . . . . . . . . . . . . . Disarmed . | . . . . . . . . . . . . . . . Reprogrammed . | . . . . . . . . . . . . . . . Reused 1 | . . . 1 . . . . . . . . . . . Traps Extracted . | . . . . . . . . . . . . . . . Installed 1 | . . . 1 . . . . . . . . . . . Triggered 4 | . . . 1 . . 3 . . . . . . . . Most Traps Carried 1 | . . . 1 . . . . . . . . . . . Machines | -11 -10 -9 -9 -8 -8 -7 -7 -7 -6 -6 -6 -5 -4 -3 ---------- Run | Jun Mat Mat Min Mat Sto Fac Low Low Fac Was Fac Fac Fac Res Machines Disabled 21 | . . 2 . 1 . 2 2 . 6 . 6 . 2 . Max in Single Turn 4 | . . 1 . 1 . 1 1 . 4 . 1 . 2 . Garrison Access 1 | . . . . . . . . . . . . . 1 . Machines Repaired . | . . . . . . . . . . . . . . . Machines Sabotaged . | . . . . . . . . . . . . . . . Overloaded Fab Kills . | . . . . . . . . . . . . . . . Hacking | -11 -10 -9 -9 -8 -8 -7 -7 -7 -6 -6 -6 -5 -4 -3 --------- Run | Jun Mat Mat Min Mat Sto Fac Low Low Fac Was Fac Fac Fac Res Machines Accessed 74 | . 11 14 . 3 9 9 2 . 8 . 9 1 8 . Terminals 43 | . 8 10 . 2 8 2 1 . 5 . 5 . 2 . Fabricators 10 | . . . . . . 5 . . 3 . 2 . . . Repair Stations 5 | . 1 1 . 1 1 1 . . . . . . . . Recycling Units 7 | . 2 1 . . . . . . . . 1 . 3 . Scanalyzers 6 | . . 2 . . . 1 . . . . . 1 2 . Garrison Access 2 | . . . . . . . . . . . 1 . 1 . Total Hacks 187 | . 26 44 . 7 22 20 10 . 18 . 17 2 21 . Successful 88 | . 11 23 . 2 9 7 10 . 9 . 3 2 12 . Failed 98 | . 15 20 . 5 13 13 . . 9 . 14 . 9 . Catastrophic 32 | . 4 6 . 2 3 6 . . 4 . 6 . 1 . Database Lockouts 1 | . . 1 . . . . . . . . . . . . Manual 44 | . 10 20 . . 3 . . . 5 . 4 . 2 . Terminals 109 | . 21 27 . 5 18 3 9 . 10 . 10 . 6 . Fabricators 22 | . . . . . . 10 . . 8 . 4 . . . Repair Stations 17 | . 2 4 . 2 4 5 . . . . . . . . Recycling Units 12 | . 3 1 . . . . . . . . 1 . 7 . Scanalyzers 22 | . . 12 . . . 2 . . . . . 2 6 . Garrison Access 4 | . . . . . . . . . . . 2 . 2 . Terminal Hacks 40 | . 7 10 . 1 5 . 10 . 2 . 1 . 4 . Record 10 | . . . . . . . 9 . . . . . 1 . Part Schematic 5 | . 2 3 . . . . . . . . . . . . Robot Analysis 4 | . 3 . . 1 . . . . . . . . . . Prototype ID Bank 3 | . . 2 . . 1 . . . . . . . . . Open Door 3 | . . . . . 2 . 1 . . . . . . . Level Access Points 1 | . . . . . . . . . . . . . 1 . Terminal Index 3 | . . . . . . . . . 1 . 1 . 1 . Alert Level 2 | . . 1 . . . . . . . . . . 1 . Unreport Threat 8 | . 2 3 . . 2 . . . 1 . . . . . Hauler Manifests 1 | . . 1 . . . . . . . . . . . . Fabricator Hacks 13 | . . . . . . 4 . . 7 . 2 . . . Network Status 1 | . . . . . . 1 . . . . . . . . Load Schematic 7 | . . . . . . 2 . . 3 . 2 . . . Build 5 | . . . . . . 1 . . 4 . . . . . Repair Station Hacks 12 | . 1 4 . 1 4 2 . . . . . . . . Scan Component 7 | . 1 2 . 1 2 1 . . . . . . . . Repair 5 | . . 2 . . 2 1 . . . . . . . . Recycling Unit Hacks 7 | . 3 . . . . . . . . . . . 4 . Recycle Component 1 | . . . . . . . . . . . . . 1 . Process 3 | . . . . . . . . . . . . . 3 . Retrieve Matter 1 | . 1 . . . . . . . . . . . . . Retrieve Components 2 | . 2 . . . . . . . . . . . . . Scanalyzer 15 | . . 9 . . . 1 . . . . . 2 3 . Insert Component 9 | . . 5 . . . 1 . . . . . 1 2 . Analyze 6 | . . 4 . . . . . . . . . 1 1 . Garrison Access Hacks 1 | . . . . . . . . . . . . . 1 . Seal Access 1 | . . . . . . . . . . . . . 1 . Unauthorized Hacks . | . . . . . . . . . . . . . . . Terminals . | . . . . . . . . . . . . . . . Fabricators . | . . . . . . . . . . . . . . . Repair Stations . | . . . . . . . . . . . . . . . Recycling Units . | . . . . . . . . . . . . . . . Scanalyzers . | . . . . . . . . . . . . . . . Garrison Access . | . . . . . . . . . . . . . . . Data Cores Recovered 1 | . . . . . . . . . . . 1 . . . Used . | . . . . . . . . . . . . . . . Hacking Detections 68 | . 9 12 . 3 8 9 1 . 8 . 9 1 8 . Full Trace Events 11 | . 3 2 . . . 1 1 . 3 . . . 1 . Feedback Events 1 | . . 1 . . . . . . . . . . . . Corruption 1 | . . 1 . . . . . . . . . . . . Feedback Blocked . | . . . . . . . . . . . . . . . Robot Schematics Acquired . | . . . . . . . . . . . . . . . Robots Built 1 | . . . . . . . . . 1 . . . . . Authchips . | . . . . . . . . . . . . . . . Time 152 | . . . . . . . . . 152 . . . . . Total Robot Build Rating 5 | . . . . . . . . . 5 . . . . . Part Schematics Acquired 11 | . 2 7 . . . . . . . . . 1 1 . Parts Built 4 | . . . . . . 1 . . 3 . . . . . Authchips . | . . . . . . . . . . . . . . . Time 250 | . . . . . . 73 . . 177 . . . . . Total Part Build Rating 11 | . . . . . . 3 . . 8 . . . . . Parts Repaired 5 | . . 2 . . 2 1 . . . . . . . . Time 174 | . . 76 . . 82 16 . . . . . . . . Parts Recycled 1 | . . . . . . . . . . . . . 1 . Recycled Matter 85 | . . . . . . . . . . . . . 85 . Retrieved Matter . | . . . . . . . . . . . . . . . Retrieved Components 10 | . 10 . . . . . . . . . . . . . Parts Scanalyzed 8 | . . 5 . . . 1 . . . . . 1 1 . Part Schematics Acquired 6 | . . 4 . . . . . . . . . 1 1 . Parts Damaged . | . . . . . . . . . . . . . . . Bothacking | -11 -10 -9 -9 -8 -8 -7 -7 -7 -6 -6 -6 -5 -4 -3 ------------ Run | Jun Mat Mat Min Mat Sto Fac Low Low Fac Was Fac Fac Fac Res Used RIF Installer . | . . . . . . . . . . . . . . . Robots Hacked . | . . . . . . . . . . . . . . . Non-combat . | . . . . . . . . . . . . . . . Combat . | . . . . . . . . . . . . . . . Robot Hacks Applied . | . . . . . . . . . . . . . . . Relay Couplers Released . | . . . . . . . . . . . . . . . Fabnet Peak Effective % . | . . . . . . . . . . . . . . . Robots Rewired . | . . . . . . . . . . . . . . . Allies Hacked 1 | . . . . . . . . . . . 1 . . . Hacks Repelled . | . . . . . . . . . . . . . . . Allies | -11 -10 -9 -9 -8 -8 -7 -7 -7 -6 -6 -6 -5 -4 -3 -------- Run | Jun Mat Mat Min Mat Sto Fac Low Low Fac Was Fac Fac Fac Res Total Allies 21 | . . . . . . . . . 1 20 . . . . Largest Group 19 | . . . . . . . . . 1 19 19 . . . Highest-Rated Group 702 | . . . . . . . . . 19 702 702 . . . Highest-Rated Ally 50 | . . . . . . . . . 19 50 50 . . . Total Orders 13 | . . . . . . 12 . . . . 1 . . . ROAM 2 | . . . . . . 2 . . . . . . . . EXPLORE 9 | . . . . . . 9 . . . . . . . . RETURN 2 | . . . . . . 1 . . . . 1 . . . Ally Attacks 86 | . . . . . . . . . . . 86 . . . Total Damage 3182 | . . . . . . . . . . . 3182 . . . Kills 24 | . . . . . . . . . . . 24 . . . Allies Corrupted . | . . . . . . . . . . . . . . . Allies Melted 1 | . . . . . . . . . . . 1 . . . Intel | -11 -10 -9 -9 -8 -8 -7 -7 -7 -6 -6 -6 -5 -4 -3 ------- Run | Jun Mat Mat Min Mat Sto Fac Low Low Fac Was Fac Fac Fac Res Robot Analysis Total 4 | . 3 . . 1 . . . . . . . . . . Derelict Logs Recovered 3 | . . . 1 . . . 2 . . . . . . . Drone Launches 13 | . . . . . . 11 . . . . 2 . . . Drone Recoveries 8 | . . . . . . 6 . . . . 2 . . . Exploration | -11 -10 -9 -9 -8 -8 -7 -7 -7 -6 -6 -6 -5 -4 -3 ------------- Run | Jun Mat Mat Min Mat Sto Fac Low Low Fac Was Fac Fac Fac Res Turns Passed 14563 | 109 1584 2073 190 748 1425 2031 749 41 1448 437 1579 324 1298 527 Spaces Moved 8143 | 52 837 1074 118 288 582 965 509 30 879 311 1061 221 766 450 Core 165 | 1 . . . . . . . . . . . . . 164 Treads . | . . . . . . . . . . . . . . . Legs 5617 | . . . . 39 582 965 509 30 879 311 1061 221 766 254 Wheels 2329 | 51 837 1074 118 249 . . . . . . . . . . Hover . | . . . . . . . . . . . . . . . Flight 32 | . . . . . . . . . . . . . . 32 Fastest Speed 40 | 50 90 140 140 140 190 122 122 125 120 120 120 120 120 40 Average Speed 133 | 96 138 151 154 160 192 125 126 125 123 120 121 120 120 90 Slowest Speed 260 | 100 200 155 155 230 260 260 193 125 190 120 190 120 120 260 Overloaded Moves . | . . . . . . . . . . . . . . . Propulsion Burnouts . | . . . . . . . . . . . . . . . Robots Hopped . | . . . . . . . . . . . . . . . Cave-ins Triggered . | . . . . . . . . . . . . . . . Exploration Rate (%) 40 | 3 99 94 35 22 58 34 59 10 24 95 34 5 16 18 Regions Visited 14 Branch Regions 4 Pre-discovered Areas 1 | . . . . . . . 1 . . . . . . . Known Exits Taken 9 | . 1 1 1 1 1 1 1 1 . . . . 1 . Unknown Exits Taken 3 | 1 . . . . . . . . . . 1 1 . . Scrap Searched 2 | . . . . . . . 2 . . . . . . . Spaces Dug 1 | . . . 1 . . . . . . . . . . . Terrain Destroyed 848 | . . 102 1 106 69 35 2 . 105 187 194 . 29 18 Melee . | . . . . . . . . . . . . . . . Projectile 69 | . . 15 1 13 4 6 2 . 2 1 11 . 10 4 AOE 779 | . . 87 . 93 65 29 . . 103 186 183 . 19 14 Terrain Rammed . | . . . . . . . . . . . . . . . Walls Destroyed . | . . . . . . . . . . . . . . . Machines Disabled . | . . . . . . . . . . . . . . . Actions | -11 -10 -9 -9 -8 -8 -7 -7 -7 -6 -6 -6 -5 -4 -3 --------- Run | Jun Mat Mat Min Mat Sto Fac Low Low Fac Was Fac Fac Fac Res Total 10628 | 77 1066 1341 122 436 807 1634 558 31 1117 334 1293 265 1024 523 Wait 1281 | . 73 94 . 11 150 547 5 . 97 3 134 16 132 19 Move 8131 | 51 836 1073 117 287 581 964 508 29 879 310 1061 220 765 450 Hop . | . . . . . . . . . . . . . . . Pick Up 190 | 5 32 31 1 21 8 9 7 1 28 4 10 6 19 8 Fast Attach 74 | 6 7 6 . 6 6 5 1 . 1 1 13 5 10 7 Attach 99 | . 8 16 . 17 . 8 2 . 15 . 4 10 9 10 Detach 18 | . 1 1 . 2 . 3 . . 3 . 1 1 5 1 Swap 80 | . 4 6 . 8 8 13 . . 17 1 15 . 6 2 Drop 135 | . 8 23 1 15 14 12 6 . 20 4 17 . 14 1 Fire 598 | 15 97 90 2 69 39 73 28 1 55 11 32 7 58 21 Melee . | . . . . . . . . . . . . . . . Ram 4 | . . 1 . . . . . . . . . . . 3 Kick 15 | . . . . . . . . . 2 . 6 . 6 1 Crush . | . . . . . . . . . . . . . . . Escape Stasis . | . . . . . . . . . . . . . . . Rewire 2 | . . . . . 1 . 1 . . . . . . . Trap 1 | . . . 1 . . . . . . . . . . . Miscellaneous . | . . . . . . . . . . . . . . . Route ------- -11/Junkyard -10/Materials (discovered 5 exits: *Mat x3 / [*Min x2]) -9/Materials (discovered 5 exits: *Mat x3 / *Min x2) -9/Mines (discovered 2 exits: *Mat x2) -8/Materials -8/Storage -7/Factory (discovered 2 exits: *Low x2) -7/Lower Caves -7/Lower Caves -6/Factory -6/Waste -6/Factory -5/Factory (discovered 3 exits: *Fac / Upp x2) -4/Factory (discovered 4 exits: *Res x4) -3/Research History --------- Turn | Location | Event 15 | -11/Junkyard | Discovered new exit (range 16) 110 | -11/Junkyard | Entered Materials 304 | -10/Materials | Build established: Mutant 397 | -10/Materials | Discovered new exit (range 16) 566 | -10/Materials | Core integrity fell below 50% 604 | -10/Materials | Destroyed 10 combat bots 611 | -10/Materials | Lost 3 parts (1p1n1w) 666 | -10/Materials | Discovered new exit (range 16) 735 | -10/Materials | Core integrity fell below 20% 875 | -10/Materials | Discovered new exit (range 14) 1200 | -10/Materials | Discovered new exit (range 12) 1347 | -10/Materials | Discovered new exit (range 12) 1359 | -10/Materials | Build established: Scavenger-Mutant 1692 | -10/Materials | Identified exit to Materials 1694 | -10/Materials | Entered another Materials area 1694 | -9/Materials | Evolved 2 slots: Utility x2 1915 | -9/Materials | Lost 3 parts (1p2u) 2017 | -9/Materials | Discovered new exit (range 3) 2173 | -9/Materials | Central database locked down 2340 | -9/Materials | Build established: Mutant 2468 | -9/Materials | Core integrity fell below 50% 2575 | -9/Materials | Repaired Ion Cannon? 2639 | -9/Materials | Repaired Ion Cannon 2709 | -9/Materials | Discovered new exit (range 13) 2804 | -9/Materials | Identified exit to Mines 3003 | -9/Materials | Discovered new exit (range 8) 3014 | -9/Materials | Identified exit to Materials 3183 | -9/Materials | Discovered exit to Mines (range 5) 3409 | -9/Materials | Discovered exit to Materials (range 11) 3767 | -9/Materials | Entered Mines 3812 | -9/Mines | Found a hidden stash of uninstalled traps 3931 | -9/Mines | Discovered exit to Materials (range 13) 3957 | -9/Mines | Entered Materials 3957 | -8/Materials | Evolved 2 slots: Utility x2 4021 | -8/Materials | Garrison activated, responded to threat 4084 | -8/Materials | Destroyed 8 combat bots 4086 | -8/Materials | Discovered new exit (range 15) 4159 | -8/Materials | Identified exit to Storage 4564 | -8/Materials | Garrison activated, responded to threat 4636 | -8/Materials | Lost 6 parts (3n2u1w) 4705 | -8/Materials | Entered Storage 5141 | -8/Storage | Found Prototype Launcher 5142 | -8/Storage | Identified Scatter Rocket Array 5360 | -8/Storage | Core integrity fell below 50% 5674 | -8/Storage | Build established: Scavenger-Mutant 5739 | -8/Storage | Discovered new exit (range 12) 5959 | -8/Storage | Repaired Hvy. Laser 5999 | -8/Storage | Repaired Ion Cannon 6128 | -8/Storage | Identified exit to Factory 6130 | -8/Storage | Entered Factory 6130 | -7/Factory | Evolved 2 slots: Propulsion x2 6255 | -7/Factory | Discovered new exit (range 45) 7479 | -7/Factory | Fabricated Hacking Suite (x1) 7509 | -7/Factory | Lost 3 parts (1p1n1u) 7711 | -7/Factory | Cargo convoy interrupted 7730 | -7/Factory | Core integrity fell below 50% 7765 | -7/Factory | Build established: Mutant 7856 | -7/Factory | Discovered new exit (range 8) 7863 | -7/Factory | Identified exit to Lower Caves 7992 | -7/Factory | Repaired Imp. Aluminum Leg 8161 | -7/Factory | Entered Lower Caves 8252 | -7/Lower Caves | Attracted the attention of an 0b10 base 8271 | -7/Lower Caves | Build established: Scavenger-Mutant 8323 | -7/Lower Caves | Destroyed 7 combat bots 8323 | -7/Lower Caves | Learned Factory garrison access intel 8348 | -7/Lower Caves | Learned Armory trap positions 8348 | -7/Lower Caves | Learned Extension emergency access door positions 8348 | -7/Lower Caves | Learned Armory emergency access door positions 8348 | -7/Lower Caves | Learned Extension stockpile data 8710 | -7/Lower Caves | Discovered new exit (range 6) 8771 | -7/Lower Caves | Learned 8 Factory zone layouts 8909 | -7/Lower Caves | Identified exit to Lower Caves 8910 | -7/Lower Caves | Entered another Lower Caves area 8937 | -7/Lower Caves | Discovered new exit (range 14) 8950 | -7/Lower Caves | Identified exit to Factory 8951 | -7/Lower Caves | Entered Factory 8951 | -6/Factory | Evolved 2 slots: Power x1, Weapon x1 8953 | -6/Factory | Loaded intel: 4 garrison access locations 9246 | -6/Factory | Build established: Scavenger-Gunner 9248 | -6/Factory | Fabricated Imp. Targeting Computer? 9406 | -6/Factory | Spotted B-75 Beast 9437 | -6/Factory | Destroyed B-75 Beast 9465 | -6/Factory | Lost 3 parts (1p1n1u) 9480 | -6/Factory | Discovered new exit (range 14) 9881 | -6/Factory | Fabricated Hacking Suite (x1) 10245 | -6/Factory | Fabricated R-10 Processor? 10326 | -6/Factory | Fabricated Hacking Suite (x1) 10331 | -6/Factory | Garrison activated, responded to threat 10342 | -6/Factory | Garrison activated, responded to threat 10398 | -6/Factory | Lost 4 parts (1p2n1w) 10399 | -6/Factory | Sucked down chute 10399 | -6/Factory | Entered Waste 10399 | -6/Waste | Met up with 1 ally sucked down the chute earlier 10417 | -6/Waste | Spotted C-40 Crusher 10432 | -6/Waste | Destroyed C-40 Crusher 10486 | -6/Waste | Spotted C-40 Crusher 10504 | -6/Waste | Destroyed C-40 Crusher 10509 | -6/Waste | Spotted C-40 Crusher 10513 | -6/Waste | Destroyed C-40 Crusher 10518 | -6/Waste | Spotted C-40 Crusher 10527 | -6/Waste | Destroyed C-40 Crusher 10568 | -6/Waste | Spotted C-40 Crusher 10579 | -6/Waste | Destroyed C-40 Crusher 10606 | -6/Waste | Spotted C-40 Crusher 10613 | -6/Waste | Destroyed C-40 Crusher 10673 | -6/Waste | Found Fusion Bomb Launcher 10689 | -6/Waste | Discovered new exit (range 12) 10709 | -6/Waste | Warlord forces began an assault 10836 | -6/Waste | Entered Factory 10836 | -6/Factory | Accompanied by 19 allies 11296 | -6/Factory | Build established: Scavenger-Mutant 11726 | -6/Factory | Cargo convoy interrupted 11852 | -6/Factory | P-60 Hacker assimilated allied Y0-7LA(m) 11896 | -6/Factory | Build established: Gunner 12236 | -6/Factory | First assault squad dispatched 12243 | -6/Factory | Build established: Scavenger-Gunner 12305 | -6/Factory | Core integrity fell below 50% 12355 | -6/Factory | Lost 10 parts (3p2n2u3w) 12371 | -6/Factory | Core integrity fell below 20% 12406 | -6/Factory | Discovered new exit (range 8) 12415 | -6/Factory | Entered another Factory area 12415 | -5/Factory | Evolved 2 slots: Utility x2 12416 | -5/Factory | Identified exit to Upper Caves 12424 | -5/Factory | Lost 4 parts (2n1u1w) 12586 | -5/Factory | Discovered new exit (range 8) 12739 | -5/Factory | Entered another Factory area 12739 | -4/Factory | Evolved 2 slots: Propulsion x1, Weapon x1 13089 | -4/Factory | Build established: Hacker-Gunner 13152 | -4/Factory | Identified exit to Research 14037 | -4/Factory | Entered Research 14037 | -3/Research | Evolved 2 slots: Utility x2 14057 | -3/Research | Lost 9 parts (1p3n1u4w) 14114 | -3/Research | Found Hvy. Reflective Plating 14498 | -3/Research | Core integrity fell below 50% 14511 | -3/Research | Core integrity fell below 20% 14518 | -3/Research | System corruption reached 10% 14553 | -3/Research | Lost 19 parts (2p8n5u4w) 14564 | -3/Research | Destroyed by G-67 Veteran with Plasma Rifle Last Messages --------------- 14492_ Penetrated by Slug. 14492_ Adv. Sensor Array destroyed. 14492_ Slug penetrates Wall. 14494_ Penetrated by Slug. 14494_ Slug penetrates H-77 Assassin. 14494_ H-77 Assassin suffers critical hit (Destroy). 14494_ Slug penetrates S-43 Plague. 14494_ S-43 Plague destroyed. 14496_ K-01 Serf collects debris. 14497_ System corrupted: Matter fused (-10). 14497_ Slug penetrates S-43 Plague. 14497_ S-43 Plague destroyed. 14497_ Imp. Core Shielding destroyed. 14498_ Slug penetrates Wall. 14499_ K-01 Serf collects debris. 14502_ Penetrated by Slug. 14502_ Hacking Suite destroyed. 14520_ Acquired Imp. Coolant Injector. 14522_ Hacking Suite destroyed. 14564_ Slammed into G-67 Veteran. Map ----- +----------------------------------------------------+ | ?????????????????????????????????????????? | | ?????????????????????????????????????????? | | ?????????????????????????????????????????? | | ?????????????????????????????????????????? | | ?????????????????????????????????????????? | | ?????????????????????????????????????????? | | ?????????????????????????????????????????? | | ?????????????????????????????????????????? | | ?????????????????????????????????????????? | | ?????????????????????????????????????????? | | ?????????????????????????????????????????? | | ?????????????????????????????????????????? | | ?????????????????????????????????????????? | | ?????????????????????????????????????????? | | ?????????????????????????????????????????? | | ?????????????????????????????????????????? | | ?????????????????????????????????????????? | | ?????????????????????????????????????????? | | ?????????????????????????????????????????? | | ?????????????????????????????????????????? | | ?????????????????????????????????????????? | | ?????????????????????????????????????????? | | ?????????????????????????????????????????? | | ?????????????????????????????????????????? | | ????????##################???????????????? | | ????????# = @g ????????? | | ????????# gg########???????????????? | | ????????# """" #??????????????????????? | | ????????# """" #??????????????????????? | | ????????#! """"l #??????????????????????? | | ????????# """" ######?????????????????? | | ????????# ^ # #?????????????????? | | ????????# # #?????????????????? | | ????????####+##+### #?????????????????? | | ???????????# +?????????????????? | | ???????????# #?????????????????? | | ???????????# #?????????????????? | | ???????????# #?????????????????? | | ????????#######+### #?????????????????? | | ????????# # #?????????????????? | | ????????# # #?????????????????? | | ????????# + #?????????????????? | | ????????# # #?????????????????? | | ????????# # #??#######????????? | | ????????# # #? #????????? | | ????????# # #? #????????? | | ????????# # # " #????????? | | ????????########### # "" #????????? | | ??????????????????+ + G #????????? | | ??????????????????# # "" ! #????????? | +----------------------------------------------------+ Best States ------------- Heat Dissipation 65 Coolant Potential 160 Energy Generation 32 Energy Capacity 375 Matter Stores 300 Matter Capacity 300 Sight Range 22 Robot Scan Range 16 Terrain Scan Range 16 Terrain Scan Density 10 ECM Strength 1 Base Temperature (-) 200 Armor Coverage 225 Resistance: EX 25 Core Shielding 30 Weapon Shielding 33 Weapon Cycling 15 Evasion (%) 62 Targeting Accuracy 6 Target Analysis 8 Core Analysis 6 Armor Integrity Analysis 30 Particle Charging 15 Offensive Hacking 44 Item Schematics ----------------- ECM Suite | -10/Materials | Hacked Sensor Array | -10/Materials | Hacked Imp. Targeting Computer | -9/Materials | Hacked Imp. Aluminum Leg | -9/Materials | Hacked Imp. Treads | -9/Materials | Hacked Imp. Heat Sink | -9/Materials | Scanalyzed Hacking Suite | -9/Materials | Scanalyzed Deuterium Engine | -9/Materials | Scanalyzed Imp. Terrain Scanner | -9/Materials | Scanalyzed Lgt. Fission Core | -5/Factory | Scanalyzed Imp. Arc Projector | -4/Factory | Scanalyzed Robot Schematics ------------------ None Fabricated ------------ Hacking Suite | x1 | -7/Factory Imp. Targeting Computer | x1 | -6/Factory Hacking Suite | x1 | -6/Factory R-10 Processor | x1 | -6/Factory | Preloaded Hacking Suite | x1 | -6/Factory Alien Tech Used ----------------- None Achievements -------------- Release The Drones! Challenges ------------ None Game ------ Seed LatentAccelerationTerrabomb Manual? 0 Play Time 03:23:11 Cumulative 84.1 hours Start 2023.08.20 @ 07:09:35 End 2023.08.26 @ 13:44:21 Sessions 5 Manual Loads 0 Difficulty Rogue Special Mode None Game No. 53 Rogue 53 Adventurer 0 Explorer 0 Win Type - Total 0 Types 0/0/0/0/0/0/0/0/0 Lore% 35 Gallery% 39 Achievement% 33 Wizard Run 0 Options --------- ASCII 0 Keyboard 1 Movement Vi Keybinds 0 Fullscreen 2 Font 18/Terminus Map View 76x50 Tactical HUD 1 Map Filters NONE Filters NONE Steam 1 RUN: 41b3b278-6e82-4e7c-ae0b-dc1bd1da711e